[Event "*** Titled Tuesday 3|2 Blitz"]
[Site "Chess.com"]
[Date "2016.10.04"]
[Round "1"]
[White "Paralinch"]
[Black "MateusViageiro"]
[Result "1/2-1/2"]
[WhiteElo "2552"]
[BlackElo "2313"]
[TimeControl "180+2"]
[EndTime "11:09:51 PDT"]
[Termination "Game drawn by repetition"]

1. e4 {[%clk 0:03:01.9]} 1... c5 {[%clk 0:02:59.6]} 2. Nf3 {[%clk 0:03:02.4]}
2... d6 {[%clk 0:02:59.9]} 3. d4 {[%clk 0:03:03.4]} 3... cxd4 {[%clk 0:03:00.8]}
4. Nxd4 {[%clk 0:03:05.3]} 4... Nf6 {[%clk 0:03:02.4]} 5. Nc3 {[%clk 0:03:05.9]}
5... a6 {[%clk 0:03:03.9]} 6. Be3 {[%clk 0:03:06.1]} 6... Ng4 {[%clk 0:03:04]}
7. Bc1 {[%clk 0:03:06.1]} 7... Nf6 {[%clk 0:03:03.7]} 8. h3 {[%clk 0:03:05.6]}
8... e5 {[%clk 0:03:03.4]} 9. Nf3 {[%clk 0:03:06.2]} 9... Qc7 {[%clk 0:03:03.1]}
10. a4 {[%clk 0:03:03.4]} 10... Be6 {[%clk 0:03:02.6]} 11. a5 {[%clk 0:03:02.2]}
11... Nc6 {[%clk 0:03:02]} 12. Nd5 {[%clk 0:03:00.4]} 12... Bxd5 {[%clk
0:02:58.4]} 13. exd5 {[%clk 0:03:02.3]} 13... Nxa5 {[%clk 0:02:43.8]} 14. c4
{[%clk 0:02:57.5]} 14... b6 {[%clk 0:02:40.1]} 15. Qa4+ {[%clk 0:02:36.4]} 15...
Nd7 {[%clk 0:02:36.2]} 16. Bd3 {[%clk 0:02:31.3]} 16... Be7 {[%clk 0:02:36.2]}
17. Qc2 {[%clk 0:02:29.2]} 17... Nc5 {[%clk 0:02:32.7]} 18. O-O {[%clk 0:02:21]}
18... Nab3 {[%clk 0:02:31.4]} 19. Ra3 {[%clk 0:02:19.8]} 19... Nxc1 {[%clk
0:02:32.2]} 20. Rxc1 {[%clk 0:02:20.7]} 20... Nxd3 {[%clk 0:02:24.9]} 21. Qxd3
{[%clk 0:02:21.7]} 21... O-O {[%clk 0:02:24.2]} 22. b4 {[%clk 0:02:22.5]} 22...
f5 {[%clk 0:02:22.9]} 23. Qb1 {[%clk 0:02:23.6]} 23... g6 {[%clk 0:02:22.3]} 24.
Qa2 {[%clk 0:02:15.6]} 24... a5 {[%clk 0:02:21.9]} 25. c5 {[%clk 0:02:07.5]}
25... Kh8 {[%clk 0:02:00.8]} 26. c6 {[%clk 0:02:04.8]} 26... Bf6 {[%clk
0:01:56]} 27. Nd2 {[%clk 0:01:59.5]} 27... Bg5 {[%clk 0:01:49.4]} 28. Ra1 {[%clk
0:01:57.7]} 28... Bxd2 {[%clk 0:01:48.9]} 29. Qxd2 {[%clk 0:01:59.1]} 29... f4
{[%clk 0:01:43.8]} 30. bxa5 {[%clk 0:01:58.8]} 30... bxa5 {[%clk 0:01:40.7]} 31.
Rxa5 {[%clk 0:01:59.5]} 31... Rxa5 {[%clk 0:01:40]} 32. Qxa5 {[%clk 0:02:01.4]}
32... Qf7 {[%clk 0:01:33.5]} 33. f3 {[%clk 0:01:46.7]} 33... e4 {[%clk
0:01:30.5]} 34. fxe4 {[%clk 0:01:39.7]} 34... f3 {[%clk 0:01:30.9]} 35. Qc3+
{[%clk 0:01:40.5]} 35... Kg8 {[%clk 0:01:30.1]} 36. Qxf3 {[%clk 0:01:36.4]}
36... Qg7 {[%clk 0:01:31.1]} 37. Qd1 {[%clk 0:01:16.7]} 37... Qe5 {[%clk
0:01:31.5]} 38. Rc1 {[%clk 0:01:03.2]} 38... Qxe4 {[%clk 0:01:30.8]} 39. c7
{[%clk 0:01:02.4]} 39... Rc8 {[%clk 0:01:31]} 40. Qd2 {[%clk 0:00:56.1]} 40...
Qe7 {[%clk 0:01:27.6]} 41. Qc3 {[%clk 0:00:57.1]} 41... Qg7 {[%clk 0:01:26.6]}
42. Qc6 {[%clk 0:00:50.2]} 42... Qe7 {[%clk 0:01:20.7]} 43. Kh1 {[%clk 0:00:50]}
43... Kg7 {[%clk 0:01:18]} 44. Qb6 {[%clk 0:00:43.6]} 44... Qd7 {[%clk
0:01:17.6]} 45. Qb2+ {[%clk 0:00:40.7]} 45... Kg8 {[%clk 0:01:17.9]} 46. Qb7
{[%clk 0:00:41.3]} 46... Qf5 {[%clk 0:01:15.3]} 47. Rb1 {[%clk 0:00:36.9]} 47...
Kg7 {[%clk 0:01:14.5]} 48. Rc1 {[%clk 0:00:33.5]} 48... Kh6 {[%clk 0:01:12]} 49.
Qc6 {[%clk 0:00:33]} 49... Qf4 {[%clk 0:01:11.2]} 50. Rc4 {[%clk 0:00:30.9]}
50... Qf6 {[%clk 0:01:06.2]} 51. Rc1 {[%clk 0:00:23]} 51... Qf4 {[%clk
0:01:03.7]} 52. Qc2 {[%clk 0:00:22.5]} 52... Kg7 {[%clk 0:00:58.8]} 53. Qc3+
{[%clk 0:00:23.3]} 53... Qf6 {[%clk 0:00:59.3]} 54. Kh2 {[%clk 0:00:23.2]} 54...
Qxc3 {[%clk 0:00:59.6]} 55. Rxc3 {[%clk 0:00:25.1]} 55... Kf6 {[%clk 0:01:01.2]}
56. Kg3 {[%clk 0:00:24.6]} 56... Ke5 {[%clk 0:01:02.4]} 57. Rc1 {[%clk
0:00:25.9]} 57... Kxd5 {[%clk 0:01:03.5]} 58. Kf4 {[%clk 0:00:27.3]} 58... Ke6
{[%clk 0:01:04.6]} 59. Kg5 {[%clk 0:00:28.2]} 59... Kd7 {[%clk 0:01:05.4]} 60.
Kh6 {[%clk 0:00:29.6]} 60... Rxc7 {[%clk 0:01:06.7]} 61. Re1 {[%clk 0:00:27]}
61... Kc6 {[%clk 0:01:07]} 62. Rc1+ {[%clk 0:00:27.9]} 62... Kb6 {[%clk
0:01:07.9]} 63. Rb1+ {[%clk 0:00:29]} 63... Kc6 {[%clk 0:01:08.4]} 64. Rc1+
{[%clk 0:00:30.3]} 64... Kb6 {[%clk 0:01:09.6]} 65. Rb1+ {[%clk 0:00:31.6]}
65... Kc6 {[%clk 0:01:10.9]} 66. Rc1+ {[%clk 0:00:32.9]} 66... Kb6 {[%clk
0:01:12.2]} 1/2-1/2

[Event "*** Titled Tuesday 3|2 Blitz"]
[Site "Chess.com"]
[Date "2016.10.04"]
[Round "1"]
[White "josiwales"]
[Black "Kouzari"]
[Result "1-0"]
[WhiteElo "2208"]
[BlackElo "2450"]
[TimeControl "180+2"]
[EndTime "11:09:54 PDT"]
[Termination "josiwales won by resignation"]

1. e4 {[%clk 0:03:02]} 1... e6 {[%clk 0:02:57.4]} 2. d3 {[%clk 0:03:02.6]} 2...
d5 {[%clk 0:02:59.3]} 3. Qe2 {[%clk 0:03:03.7]} 3... Nf6 {[%clk 0:02:58]} 4. Nf3
{[%clk 0:02:57.1]} 4... Be7 {[%clk 0:02:57.9]} 5. e5 {[%clk 0:02:57.3]} 5...
Nfd7 {[%clk 0:02:56.1]} 6. g3 {[%clk 0:02:57]} 6... c5 {[%clk 0:02:58]} 7. Bg2
{[%clk 0:02:58.1]} 7... Nc6 {[%clk 0:02:56.9]} 8. h4 {[%clk 0:02:59.4]} 8... b5
{[%clk 0:02:57.4]} 9. O-O {[%clk 0:02:59]} 9... Bb7 {[%clk 0:02:58.5]} 10. h5
{[%clk 0:03:00.2]} 10... h6 {[%clk 0:02:56.5]} 11. Bf4 {[%clk 0:02:58.1]} 11...
g5 {[%clk 0:02:54.6]} 12. hxg6 {[%clk 0:02:58.5]} 12... fxg6 {[%clk 0:02:56.2]}
13. Bh3 {[%clk 0:02:56.6]} 13... Nf8 {[%clk 0:02:50.5]} 14. d4 {[%clk
0:02:51.2]} 14... cxd4 {[%clk 0:02:42.4]} 15. Qxb5 {[%clk 0:02:51.6]} 15... Qd7
{[%clk 0:02:29]} 16. Qd3 {[%clk 0:02:31.2]} 16... g5 {[%clk 0:02:21.9]} 17. Bd2
{[%clk 0:02:28.2]} 17... Rg8 {[%clk 0:02:12.7]} 18. Bg4 {[%clk 0:02:14.9]} 18...
O-O-O {[%clk 0:02:07.3]} 19. Re1 {[%clk 0:02:06]} 19... Ng6 {[%clk 0:02:01]} 20.
Nxd4 {[%clk 0:01:54.9]} 20... Nxd4 {[%clk 0:01:22.7]} 21. Qxd4 {[%clk
0:01:53.4]} 21... Kb8 {[%clk 0:01:22.8]} 22. Nc3 {[%clk 0:01:50.1]} 22... Qc6
{[%clk 0:01:21.3]} 23. Be3 {[%clk 0:01:45.6]} 23... a6 {[%clk 0:01:07.2]} 24.
Na4 {[%clk 0:01:30.3]} 24... h5 {[%clk 0:00:57.2]} 25. Be2 {[%clk 0:01:16.4]}
25... Nf4 {[%clk 0:00:56.9]} 26. Qa7+ {[%clk 0:01:14.3]} 26... Kc8 {[%clk
0:00:57.6]} 27. Nb6+ {[%clk 0:01:12.3]} 27... Kc7 {[%clk 0:00:58.2]} 28. Bxa6
{[%clk 0:01:11.6]} 28... Nh3+ {[%clk 0:00:58.7]} 29. Kh2 {[%clk 0:01:10.8]}
29... d4 {[%clk 0:00:50.6]} 30. Bxb7 {[%clk 0:01:00.5]} 30... Qxb6 {[%clk
0:00:38.2]} 31. Qxb6+ {[%clk 0:01:00.7]} 31... Kxb6 {[%clk 0:00:37.7]} 32. Kxh3
{[%clk 0:00:57.8]} 32... dxe3 {[%clk 0:00:35.6]} 33. Be4 {[%clk 0:00:51.5]}
33... exf2 {[%clk 0:00:36.1]} 34. Re2 {[%clk 0:00:52.7]} 34... Bc5 {[%clk
0:00:32.3]} 35. c3 {[%clk 0:00:45.9]} 35... Kc7 {[%clk 0:00:32.6]} 36. b4 {[%clk
0:00:45.7]} 36... Bb6 {[%clk 0:00:33.5]} 37. a4 {[%clk 0:00:45.7]} 37... Rgf8
{[%clk 0:00:31.7]} 38. Rf1 {[%clk 0:00:46.4]} 38... Rd7 {[%clk 0:00:29.4]} 39.
a5 {[%clk 0:00:47.4]} 39... Ba7 {[%clk 0:00:30.5]} 40. b5 {[%clk 0:00:48.1]}
40... Bc5 {[%clk 0:00:30.6]} 41. b6+ {[%clk 0:00:48.6]} 41... Kb8 {[%clk
0:00:32]} 42. Rb2 {[%clk 0:00:44.9]} 42... Rd5 {[%clk 0:00:23.2]} 43. Bxd5
{[%clk 0:00:43.9]} 43... exd5 {[%clk 0:00:24.5]} 44. Rb5 {[%clk 0:00:42.7]}
44... Be3 {[%clk 0:00:22.1]} 45. Rxd5 {[%clk 0:00:43.4]} 45... Kb7 {[%clk
0:00:23.4]} 46. Rd3 {[%clk 0:00:38.3]} 46... Bc5 {[%clk 0:00:23.8]} 47. Kg2
{[%clk 0:00:26.4]} 47... h4 {[%clk 0:00:25.3]} 48. Rd5 {[%clk 0:00:24.5]} 48...
Be3 {[%clk 0:00:22.3]} 49. e6 {[%clk 0:00:25.9]} 49... hxg3 {[%clk 0:00:19]} 50.
e7 {[%clk 0:00:20.9]} 50... Re8 {[%clk 0:00:20.1]} 51. Rd7+ {[%clk 0:00:22.6]}
51... Kc6 {[%clk 0:00:19.7]} 52. Rc7+ {[%clk 0:00:23.8]} 52... Kb5 {[%clk
0:00:21.1]} 53. Kxg3 {[%clk 0:00:25.3]} 53... Bf4+ {[%clk 0:00:22.6]} 54. Kf3
{[%clk 0:00:26.3]} 54... Bxc7 {[%clk 0:00:24]} 55. bxc7 {[%clk 0:00:27]} 55...
Kc6 {[%clk 0:00:25.7]} 56. Rxf2 {[%clk 0:00:26.3]} 56... Kxc7 {[%clk 0:00:27.2]}
57. Re2 {[%clk 0:00:27.7]} 57... Kc6 {[%clk 0:00:28.4]} 58. Kg4 {[%clk
0:00:29.2]} 58... Kb5 {[%clk 0:00:30.1]} 59. Kxg5 {[%clk 0:00:30.8]} 59... Rxe7
{[%clk 0:00:32]} 60. Rxe7 {[%clk 0:00:31.6]} 1-0

[Event "*** Titled Tuesday 3|2 Blitz"]
[Site "Chess.com"]
[Date "2016.10.04"]
[Round "1"]
[White "Baggio95"]
[Black "igorkovalenko"]
[Result "1-0"]
[WhiteElo "2366"]
[BlackElo "2615"]
[TimeControl "180+2"]
[EndTime "11:09:59 PDT"]
[Termination "Baggio95 won on time"]

1. e4 {[%clk 0:03:00.6]} 1... e6 {[%clk 0:02:58.3]} 2. d4 {[%clk 0:03:00.3]}
2... d5 {[%clk 0:02:57.2]} 3. Nc3 {[%clk 0:03:01.2]} 3... Bb4 {[%clk 0:02:55.5]}
4. e5 {[%clk 0:03:01.3]} 4... c5 {[%clk 0:02:45.9]} 5. a3 {[%clk 0:03:00.3]}
5... Bxc3+ {[%clk 0:02:45.5]} 6. bxc3 {[%clk 0:03:02.2]} 6... Qa5 {[%clk
0:02:45.6]} 7. Bd2 {[%clk 0:03:02.2]} 7... Qa4 {[%clk 0:02:43.9]} 8. Qb1 {[%clk
0:03:00.1]} 8... c4 {[%clk 0:02:43.1]} 9. Ne2 {[%clk 0:02:57.1]} 9... Nc6 {[%clk
0:02:41.3]} 10. g3 {[%clk 0:02:54.5]} 10... Bd7 {[%clk 0:02:39.8]} 11. Bg2
{[%clk 0:02:54.7]} 11... O-O-O {[%clk 0:02:38.9]} 12. O-O {[%clk 0:02:53.7]}
12... f6 {[%clk 0:02:37.1]} 13. exf6 {[%clk 0:02:52.2]} 13... Nxf6 {[%clk
0:02:36.3]} 14. Bf4 {[%clk 0:02:25.7]} 14... h6 {[%clk 0:02:19.6]} 15. h3 {[%clk
0:02:05.2]} 15... g5 {[%clk 0:02:17.4]} 16. Be5 {[%clk 0:02:04.9]} 16... Rhf8
{[%clk 0:02:07.7]} 17. Qb2 {[%clk 0:01:55.5]} 17... Be8 {[%clk 0:02:04.2]} 18.
f4 {[%clk 0:01:28.8]} 18... g4 {[%clk 0:01:13.3]} 19. Bxf6 {[%clk 0:01:26.1]}
19... Rxf6 {[%clk 0:01:14.3]} 20. hxg4 {[%clk 0:01:26.7]} 20... Bg6 {[%clk
0:01:12.5]} 21. Rac1 {[%clk 0:01:22.4]} 21... Rg8 {[%clk 0:01:10.9]} 22. Rf2
{[%clk 0:01:11.3]} 22... Bh7 {[%clk 0:01:07.9]} 23. Bh3 {[%clk 0:01:09.2]} 23...
Be4 {[%clk 0:01:02.8]} 24. Kh2 {[%clk 0:01:00.8]} 24... Kb8 {[%clk 0:00:57.5]}
25. Ng1 {[%clk 0:01:00.9]} 25... Rfg6 {[%clk 0:00:32.8]} 26. Nf3 {[%clk
0:00:58.6]} 26... Qa5 {[%clk 0:00:27.5]} 27. Nd2 {[%clk 0:00:43.1]} 27... Rxg4
{[%clk 0:00:26.6]} 28. Bxg4 {[%clk 0:00:37.6]} 28... Rxg4 {[%clk 0:00:27.5]} 29.
Rb1 {[%clk 0:00:34.3]} 29... b6 {[%clk 0:00:24]} 30. Re2 {[%clk 0:00:21.9]}
30... Bf5 {[%clk 0:00:21.7]} 31. Re3 {[%clk 0:00:19.4]} 31... h5 {[%clk
0:00:19.6]} 32. Qb5 {[%clk 0:00:18.2]} 32... Qxb5 {[%clk 0:00:18]} 33. Rxb5
{[%clk 0:00:20.1]} 33... h4 {[%clk 0:00:17.7]} 34. gxh4 {[%clk 0:00:21.4]} 34...
Rxh4+ {[%clk 0:00:16.5]} 35. Kg3 {[%clk 0:00:21.9]} 35... Rh3+ {[%clk
0:00:15.4]} 36. Kf2 {[%clk 0:00:22.5]} 36... Rh2+ {[%clk 0:00:15.3]} 37. Ke1
{[%clk 0:00:23.5]} 37... Kc7 {[%clk 0:00:14.3]} 38. Rb2 {[%clk 0:00:23.1]} 38...
Ne7 {[%clk 0:00:10.8]} 39. Nf1 {[%clk 0:00:23.1]} 39... Rh4 {[%clk 0:00:08.8]}
40. Ng3 {[%clk 0:00:16.6]} 40... Kd6 {[%clk 0:00:08.1]} 41. Kd2 {[%clk
0:00:13.4]} 41... Rxf4 {[%clk 0:00:03.1]} 42. Rb1 {[%clk 0:00:12.3]} 42... Rf2+
{[%clk 0:00:03]} 43. Re2 {[%clk 0:00:12.9]} 43... Rf3 {[%clk 0:00:02]} 44. Nxf5+
{[%clk 0:00:13.6]} 1-0

[Event "*** Titled Tuesday 3|2 Blitz"]
[Site "Chess.com"]
[Date "2016.10.04"]
[Round "1"]
[White "daro94"]
[Black "LornerAcosta"]
[Result "1/2-1/2"]
[WhiteElo "2638"]
[BlackElo "2352"]
[TimeControl "180+2"]
[EndTime "11:10:56 PDT"]
[Termination "Game drawn - insufficient material"]

1. e4 {[%clk 0:03:00.1]} 1... c5 {[%clk 0:03:00.5]} 2. Nf3 {[%clk 0:03:01.2]}
2... Nc6 {[%clk 0:03:01.4]} 3. Bb5 {[%clk 0:03:02.1]} 3... e6 {[%clk 0:03:02.4]}
4. Bxc6 {[%clk 0:03:03.2]} 4... bxc6 {[%clk 0:03:02.9]} 5. d3 {[%clk 0:03:03.3]}
5... Ne7 {[%clk 0:02:59]} 6. b3 {[%clk 0:03:03.5]} 6... d6 {[%clk 0:02:59]} 7.
O-O {[%clk 0:03:01.8]} 7... e5 {[%clk 0:02:57.5]} 8. c3 {[%clk 0:03:01.5]} 8...
Ng6 {[%clk 0:02:57]} 9. d4 {[%clk 0:02:52.2]} 9... cxd4 {[%clk 0:02:58]} 10.
cxd4 {[%clk 0:02:53.3]} 10... exd4 {[%clk 0:02:56.3]} 11. Nxd4 {[%clk 0:02:54]}
11... Bd7 {[%clk 0:02:57.4]} 12. Bb2 {[%clk 0:02:48.8]} 12... Be7 {[%clk
0:02:58.1]} 13. Nf5 {[%clk 0:02:48.7]} 13... Bxf5 {[%clk 0:02:54.7]} 14. exf5
{[%clk 0:02:50]} 14... Ne5 {[%clk 0:02:55.6]} 15. f4 {[%clk 0:02:46.3]} 15...
Nd7 {[%clk 0:02:56.4]} 16. Bxg7 {[%clk 0:02:40.7]} 16... Rg8 {[%clk 0:02:56.6]}
17. Bd4 {[%clk 0:02:24.7]} 17... Bf6 {[%clk 0:02:50.8]} 18. Nc3 {[%clk
0:02:16.4]} 18... Bxd4+ {[%clk 0:02:46.1]} 19. Qxd4 {[%clk 0:02:17.2]} 19... Qb6
{[%clk 0:02:44]} 20. Rad1 {[%clk 0:02:13.4]} 20... d5 {[%clk 0:02:42.3]} 21.
Rfe1+ {[%clk 0:02:11.4]} 21... Kd8 {[%clk 0:02:42.8]} 22. b4 {[%clk 0:02:01]}
22... Qxd4+ {[%clk 0:02:42.3]} 23. Rxd4 {[%clk 0:02:01.8]} 23... a6 {[%clk
0:02:42.6]} 24. a4 {[%clk 0:02:02.4]} 24... Re8 {[%clk 0:02:36.2]} 25. Rxe8+
{[%clk 0:01:52.8]} 25... Kxe8 {[%clk 0:02:38.1]} 26. b5 {[%clk 0:01:53.5]} 26...
axb5 {[%clk 0:02:33.8]} 27. axb5 {[%clk 0:01:55.4]} 27... Ra1+ {[%clk
0:02:13.7]} 28. Kf2 {[%clk 0:01:55.7]} 28... cxb5 {[%clk 0:02:10.3]} 29. Nxb5
{[%clk 0:01:46.3]} 29... Nf6 {[%clk 0:01:54.5]} 30. Nc7+ {[%clk 0:01:43.1]}
30... Kf8 {[%clk 0:01:52.3]} 31. Nxd5 {[%clk 0:01:40.6]} 31... Ra2+ {[%clk
0:01:53.9]} 32. Kg3 {[%clk 0:01:37.1]} 32... Ra3+ {[%clk 0:01:54.9]} 33. Kh4
{[%clk 0:01:38]} 33... Nxd5 {[%clk 0:01:53.9]} 34. Rxd5 {[%clk 0:01:39.4]} 34...
Kg7 {[%clk 0:01:53.4]} 35. Rd6 {[%clk 0:01:33.4]} 35... Ra2 {[%clk 0:01:50]} 36.
Kh3 {[%clk 0:01:28]} 36... Ra3+ {[%clk 0:01:48.6]} 37. g3 {[%clk 0:01:29]} 37...
Ra5 {[%clk 0:01:48.9]} 38. Kg4 {[%clk 0:01:27.7]} 38... Rb5 {[%clk 0:01:50]} 39.
h4 {[%clk 0:01:27.6]} 39... h6 {[%clk 0:01:35.4]} 40. Rc6 {[%clk 0:01:12.3]}
40... Ra5 {[%clk 0:01:32.7]} 41. Rb6 {[%clk 0:01:13]} 41... Rc5 {[%clk
0:01:33.5]} 42. Ra6 {[%clk 0:01:14.3]} 42... Rb5 {[%clk 0:01:34.3]} 43. h5
{[%clk 0:01:07.6]} 43... f6 {[%clk 0:01:34.6]} 44. Ra7+ {[%clk 0:01:07.3]} 44...
Kg8 {[%clk 0:01:35.4]} 45. Re7 {[%clk 0:01:07.9]} 45... Rb3 {[%clk 0:01:34.4]}
46. Kh3 {[%clk 0:01:05.3]} 46... Rb2 {[%clk 0:01:34.3]} 47. Re4 {[%clk
0:00:52.6]} 47... Rb3 {[%clk 0:01:31.5]} 48. Kh4 {[%clk 0:00:53.3]} 48... Kf7
{[%clk 0:01:32]} 49. g4 {[%clk 0:00:54.4]} 49... Rb5 {[%clk 0:01:31.8]} 50. Re3
{[%clk 0:00:49.4]} 50... Ra5 {[%clk 0:01:32.1]} 51. Kg3 {[%clk 0:00:50.6]} 51...
Rb5 {[%clk 0:01:31.4]} 52. Rd3 {[%clk 0:00:51.6]} 52... Ra5 {[%clk 0:01:30.6]}
53. Rd7+ {[%clk 0:00:52]} 53... Kg8 {[%clk 0:01:31.5]} 54. Rd4 {[%clk
0:00:42.3]} 54... Rb5 {[%clk 0:01:31.5]} 55. Kh4 {[%clk 0:00:43]} 55... Kf7
{[%clk 0:01:29.8]} 56. Kh3 {[%clk 0:00:41.4]} 56... Rb3+ {[%clk 0:01:28.5]} 57.
Kg2 {[%clk 0:00:42.7]} 57... Rb5 {[%clk 0:01:29.6]} 58. Kf3 {[%clk 0:00:44]}
58... Rb3+ {[%clk 0:01:30.4]} 59. Ke4 {[%clk 0:00:45.4]} 59... Rb5 {[%clk
0:01:30.9]} 60. Rd7+ {[%clk 0:00:45.5]} 60... Kg8 {[%clk 0:01:31.6]} 61. Kd4
{[%clk 0:00:42.2]} 61... Rb4+ {[%clk 0:01:31.2]} 62. Kd5 {[%clk 0:00:43.1]}
62... Rxf4 {[%clk 0:01:29.7]} 63. Ke6 {[%clk 0:00:42.9]} 63... Rxg4 {[%clk
0:01:30.9]} 64. Kxf6 {[%clk 0:00:43.5]} 64... Ra4 {[%clk 0:01:29.8]} 65. Kg6
{[%clk 0:00:43.2]} 65... Rg4+ {[%clk 0:01:29.5]} 66. Kxh6 {[%clk 0:00:42.3]}
66... Kf8 {[%clk 0:01:30.8]} 67. f6 {[%clk 0:00:40.9]} 67... Rg3 {[%clk
0:01:27.7]} 68. Rg7 {[%clk 0:00:40.9]} 68... Rf3 {[%clk 0:01:28.8]} 69. Rg6
{[%clk 0:00:15]} 69... Kf7 {[%clk 0:01:27.2]} 70. Kg5 {[%clk 0:00:16]} 70...
Rg3+ {[%clk 0:01:26.1]} 71. Kf5 {[%clk 0:00:17.3]} 71... Rf3+ {[%clk 0:01:27.1]}
72. Ke5 {[%clk 0:00:17.6]} 72... Re3+ {[%clk 0:01:26.7]} 73. Kf4 {[%clk
0:00:18.2]} 73... Rh3 {[%clk 0:01:26.9]} 74. Kg4 {[%clk 0:00:15]} 74... Rh1
{[%clk 0:01:27.2]} 75. Rh6 {[%clk 0:00:14.9]} 75... Rg1+ {[%clk 0:01:27.2]} 76.
Kh4 {[%clk 0:00:14.8]} 76... Rh1+ {[%clk 0:01:27.2]} 77. Kg3 {[%clk 0:00:16]}
77... Rg1+ {[%clk 0:01:27.4]} 78. Kf2 {[%clk 0:00:15.6]} 78... Rh1 {[%clk
0:01:23.3]} 79. Kg2 {[%clk 0:00:16.6]} 79... Rh4 {[%clk 0:01:23.4]} 80. Kg3
{[%clk 0:00:17.7]} 80... Rh1 {[%clk 0:01:24.4]} 81. Rh8 {[%clk 0:00:09.5]} 81...
Kxf6 {[%clk 0:01:24.1]} 82. h6 {[%clk 0:00:11.1]} 82... Kf7 {[%clk 0:01:24.2]}
83. Kg2 {[%clk 0:00:10.9]} 83... Rh5 {[%clk 0:01:24.2]} 84. Kg3 {[%clk
0:00:11.5]} 84... Kg6 {[%clk 0:01:25.1]} 85. Kg4 {[%clk 0:00:12.4]} 85... Rxh6
{[%clk 0:01:25.6]} 86. Rxh6+ {[%clk 0:00:13.8]} 86... Kxh6 {[%clk 0:01:26.9]}
1/2-1/2

[Event "*** Titled Tuesday 3|2 Blitz"]
[Site "Chess.com"]
[Date "2016.10.04"]
[Round "1"]
[White "ka1ser64"]
[Black "Lali-Rustavi"]
[Result "0-1"]
[WhiteElo "2374"]
[BlackElo "1828"]
[TimeControl "180+2"]
[EndTime "11:11:00 PDT"]
[Termination "Lali-Rustavi won by resignation"]

1. d4 {[%clk 0:03:02]} 1... d5 {[%clk 0:02:57.8]} 2. c4 {[%clk 0:03:02.5]} 2...
dxc4 {[%clk 0:02:57.7]} 3. Nf3 {[%clk 0:03:02.7]} 3... Nf6 {[%clk 0:02:58.2]} 4.
e3 {[%clk 0:02:44.9]} 4... Bg4 {[%clk 0:02:56.1]} 5. Bxc4 {[%clk 0:02:44.5]}
5... e6 {[%clk 0:02:57.3]} 6. Nbd2 {[%clk 0:02:42.1]} 6... Be7 {[%clk
0:02:57.9]} 7. Qb3 {[%clk 0:02:41.9]} 7... Qc8 {[%clk 0:02:40.7]} 8. Ne5 {[%clk
0:02:40.2]} 8... Bf5 {[%clk 0:02:31.3]} 9. f3 {[%clk 0:02:39.5]} 9... O-O {[%clk
0:02:29.9]} 10. e4 {[%clk 0:02:36]} 10... Bg6 {[%clk 0:02:30.3]} 11. O-O {[%clk
0:02:33.5]} 11... Nbd7 {[%clk 0:02:24.3]} 12. Nb1 {[%clk 0:02:13.4]} 12... Nb6
{[%clk 0:02:02.8]} 13. Be2 {[%clk 0:02:06.3]} 13... c5 {[%clk 0:02:03.6]} 14.
Be3 {[%clk 0:01:25.6]} 14... cxd4 {[%clk 0:02:01.9]} 15. Nxg6 {[%clk 0:01:24.4]}
15... hxg6 {[%clk 0:02:02]} 16. Bxd4 {[%clk 0:01:25.3]} 16... Bc5 {[%clk
0:02:01.9]} 17. Bxc5 {[%clk 0:01:21.9]} 17... Qxc5+ {[%clk 0:02:02.4]} 18. Kh1
{[%clk 0:01:22.7]} 18... Rfd8 {[%clk 0:02:02.1]} 19. Nc3 {[%clk 0:01:18.7]}
19... Rd2 {[%clk 0:02:00.3]} 20. Rad1 {[%clk 0:01:19.4]} 20... Rad8 {[%clk
0:02:00.5]} 21. Rxd2 {[%clk 0:01:20.2]} 21... Rxd2 {[%clk 0:02:00.7]} 22. Rd1
{[%clk 0:01:21.8]} 22... Qe3 {[%clk 0:01:58.1]} 23. Rxd2 {[%clk 0:01:21.5]}
23... Qxd2 {[%clk 0:01:59]} 24. Kg1 {[%clk 0:01:17.6]} 24... Nh5 {[%clk
0:01:42.9]} 25. g3 {[%clk 0:01:11.2]} 25... Nf6 {[%clk 0:01:39.6]} 26. Kf2
{[%clk 0:01:10.5]} 26... Qd4+ {[%clk 0:01:39]} 27. Kf1 {[%clk 0:01:10.8]} 27...
Nfd7 {[%clk 0:01:38.7]} 28. Qd1 {[%clk 0:01:10.8]} 28... Qe3 {[%clk 0:01:33.2]}
29. Bb5 {[%clk 0:01:06.5]} 29... Ne5 {[%clk 0:01:31.7]} 30. Kg2 {[%clk
0:01:05.3]} 30... Nbc4 {[%clk 0:01:27.3]} 31. Bxc4 {[%clk 0:01:00.7]} 31... Nxc4
{[%clk 0:01:27.4]} 32. Qd8+ {[%clk 0:00:57.9]} 32... Kh7 {[%clk 0:01:27.8]} 33.
Qh4+ {[%clk 0:00:59.4]} 33... Kg8 {[%clk 0:01:27.8]} 34. Qd8+ {[%clk 0:01:00.9]}
34... Kh7 {[%clk 0:01:29.1]} 35. Nd1 {[%clk 0:00:44.8]} 35... Qe2+ {[%clk
0:01:25.2]} 36. Nf2 {[%clk 0:00:44.3]} 36... Ne3+ {[%clk 0:01:24.3]} 37. Kh3
{[%clk 0:00:44.3]} 37... Qxf3 {[%clk 0:01:09.7]} 38. Qh4+ {[%clk 0:00:45]} 38...
Qh5 {[%clk 0:00:52.6]} 39. Nd3 {[%clk 0:00:46.2]} 39... Qxh4+ {[%clk 0:00:34.9]}
40. Kxh4 {[%clk 0:00:46.7]} 40... Kg8 {[%clk 0:00:33.1]} 41. Nc5 {[%clk
0:00:47.2]} 41... b6 {[%clk 0:00:32.8]} 42. Nd7 {[%clk 0:00:48]} 42... Nc4
{[%clk 0:00:31.9]} 43. b3 {[%clk 0:00:47.3]} 43... Nd2 {[%clk 0:00:28.9]} 44. e5
{[%clk 0:00:48.7]} 44... Nf3+ {[%clk 0:00:26.9]} 45. Kh3 {[%clk 0:00:49.2]}
45... Ne1 {[%clk 0:00:21.1]} 46. Nb8 {[%clk 0:00:46.6]} 46... Nd3 {[%clk
0:00:22]} 47. Nc6 {[%clk 0:00:47.5]} 47... a6 {[%clk 0:00:22.3]} 48. Kg2 {[%clk
0:00:47]} 48... Nc1 {[%clk 0:00:23]} 49. Nb8 {[%clk 0:00:46]} 49... a5 {[%clk
0:00:22.9]} 50. Nd7 {[%clk 0:00:46.9]} 50... b5 {[%clk 0:00:23.5]} 51. a4 {[%clk
0:00:46.8]} 51... bxa4 {[%clk 0:00:22.3]} 52. bxa4 {[%clk 0:00:47.7]} 52... Nd3
{[%clk 0:00:22.8]} 53. Nb8 {[%clk 0:00:37.1]} 53... Nxe5 {[%clk 0:00:22.5]} 54.
Kf2 {[%clk 0:00:37.8]} 54... Kf8 {[%clk 0:00:22.6]} 55. Ke3 {[%clk 0:00:38.2]}
55... Ke7 {[%clk 0:00:23.8]} 56. Kd4 {[%clk 0:00:36.8]} 56... Kd6 {[%clk
0:00:25.3]} 57. Ke4 {[%clk 0:00:26.4]} 57... Nc4 {[%clk 0:00:21.9]} 58. Kd4
{[%clk 0:00:21.4]} 58... Nb2 {[%clk 0:00:23.1]} 59. Na6 {[%clk 0:00:17.2]} 59...
Nxa4 {[%clk 0:00:23.8]} 60. Kc4 {[%clk 0:00:18.7]} 60... Nb2+ {[%clk 0:00:22.8]}
61. Kb3 {[%clk 0:00:17.9]} 61... Nd3 {[%clk 0:00:23.7]} 62. Kc4 {[%clk
0:00:17.7]} 62... Ne1 {[%clk 0:00:22.8]} 63. Nc5 {[%clk 0:00:19.2]} 63... Nf3
{[%clk 0:00:23.3]} 64. h4 {[%clk 0:00:19]} 64... Ke5 {[%clk 0:00:21.7]} 65. Kd3
{[%clk 0:00:18.6]} 65... Kf5 {[%clk 0:00:21.6]} 66. Ke3 {[%clk 0:00:19.5]} 66...
Kg4 {[%clk 0:00:23.1]} 67. Ne4 {[%clk 0:00:18.6]} 67... Ne5 {[%clk 0:00:24.3]}
68. Kf2 {[%clk 0:00:19.2]} 68... a4 {[%clk 0:00:24.7]} 69. Nc3 {[%clk
0:00:20.9]} 69... a3 {[%clk 0:00:24.5]} 70. Kg2 {[%clk 0:00:22.8]} 70... Nc4
{[%clk 0:00:24.9]} 71. Kf2 {[%clk 0:00:23.5]} 71... Nd2 {[%clk 0:00:23.7]} 72.
Ke3 {[%clk 0:00:24.6]} 72... Nf1+ {[%clk 0:00:23.9]} 73. Kf2 {[%clk 0:00:26.3]}
73... Nxg3 {[%clk 0:00:25.8]} 74. Kg2 {[%clk 0:00:27]} 74... Nf5 {[%clk
0:00:27.7]} 75. Ne4 {[%clk 0:00:28.2]} 75... Nd4 {[%clk 0:00:29.6]} 76. Nd6
{[%clk 0:00:28.9]} 76... a2 {[%clk 0:00:31]} 77. Nxf7 {[%clk 0:00:30.6]} 77...
a1=Q {[%clk 0:00:32.9]} 78. Ne5+ {[%clk 0:00:32.5]} 78... Kf5 {[%clk 0:00:32.6]}
0-1